Cogmind - Beta 14 @@@ ROGUE MODE // 2024.08.19 @ 20:15:40 // Winter2019/RPGLIKE Player: DeepestRoots Result: Heading to fleet! Performance ------------- Evolutions (9) 4500 Regions Visited (25) 5000 Robots Destroyed (428) 2140 Value Destroyed (21643) 21643 Prototype IDs (119) 2380 Alien Tech Used (9) 1800 Bonus (16645) 16645 TOTAL SCORE: 54108 Bonus ------- Triggered High Security 500 High Alert Combat Kills 8585 Follower Combat Kills 1615 Network Hubs Disabled 200 Aligned with FarCom 300 Met Zhirov 300 Built Enhanced Grunts 300 Met R17 at Cetus 500 Used Core Reset Matrix 3000 Met R17 at Research 2000 Acquired SGEMP 2000 Win 3000 Friendly Fire -5655 Cogmind --------- Core Integrity 104/900 Matter 283/300 Energy 1215/1220 System Corruption 0% Temperature Cool (-194) Movement Hovering (24) Location To Fleet Rendezvous Parts ------- > --- POWER (2) -------- Cooled Antimatter Reactor Graviton Reactor > --- PROPULSION (6) --- Cooled Gravmag System Cooled Gravmag System Improved Linear Gravjet Improved Linear Gravjet Cooled Antigrav System Combat Linear Gravjet > --- UTILITY (14) ----- Experimental Power Amplifier Advanced Cryofiber Web Experimental Energy Well Structural Scanner Spectral Analyzer Experimental Sensor Array Advanced Signal Interpreter Precision Energy Filter Quantum Capacitor Experimental Transmission Jammer Advanced Reaction Control System Advanced Cloaking Device Centrium Medium Armor Plating > --- WEAPON (3) ------- Heavy Quantum Rifle Latent Energy Streamer Hypervelocity Multirail > --- INVENTORY (6) ---- Graviton Reactor Spacefold Activator Advanced Remote Datajack SGEMP Prototype Peak State ------------ > --- POWER ------------ Graviton Reactor Graviton Reactor > --- PROPULSION ------- Cooled Gravmag System Cooled Gravmag System Improved Linear Gravjet Improved Linear Gravjet Cooled Antigrav System Combat Linear Gravjet > --- UTILITY ---------- Experimental Power Amplifier Experimental Energy Well Spectral Analyzer Experimental Sensor Array Advanced Signal Interpreter Quantum Capacitor Experimental Transmission Jammer Advanced Reaction Control System Advanced Cloaking Device Centrium Medium Armor Plating Improved Hacking Suite Improved Hacking Suite Spacefold Activator > --- WEAPON ----------- Heavy Quantum Rifle Long-range Proton Cannon Hypervelocity Multirail > --- INVENTORY -------- Advanced Cryofiber Web Structural Scanner Precision Energy Filter Latent Energy Streamer SGEMP Prototype [Rating: 214] Favorites ----------- Power Graviton Reactor Engine Heavy Deuterium Engine Power Core Micro Fission Core Reactor Graviton Reactor Propulsion Improved Linear Gravjet Treads Biometal Medium Treads Leg Myomer Exoskeleton Wheel Wheel Hover Unit Improved Linear Gravjet Flight Unit Diametric Drive Utility Improved Hacking Suite Device Experimental Sensor Array Storage Experimental Energy Well Processor Advanced Signal Interpreter Hackware Improved Hacking Suite Protection Centrium Medium Armor Plating Artifact Spacefold Activator Weapon Heavy Quantum Rifle Energy Gun Heavy Quantum Rifle Energy Cannon Long-range Proton Cannon Ballistic Gun Hypervelocity Multirail Ballistic Cannon Omega Cannon Launcher Improved Grenade Launcher Special Weapon Advanced Remote Datajack Impact Weapon Heavy Hammer Slashing Weapon Falx Special Melee Weapon Improved Datajack Build | -11 -10 -10 -10 -9 -8 -7 -7 -7 -7 -5 -5 -5 -5 -5 -4 -4 -4 -4 -4 -3 -3 -2 -2 -2 -1 ------- Run | Yrd Mat Min Exi Min Mat Fac Sto Rec Scr Fac Ext Cet Arc Hub Fac Was Fac Arm Lab Res Tes Res Qua Sec Acc Slots Evolved 21 | 3 1 . . . 2 2 3 . . 3 1 1 . . 2 . . . . 2 . . . 1 . Power 1 | . . . . . . . . . . 1 . . . . . . . . . . . . . . . Propulsion 5 | 1 . . . . . . 3 . . . . 1 . . . . . . . . . . . . . Utility 13 | 1 1 . . . 1 2 . . . 2 1 . . . 2 . . . . 2 . . . 1 . Weapon 2 | 1 . . . . 1 . . . . . . . . . . . . . . . . . . . . Parts Attached 343 | 7 8 4 5 . 6 7 25 4 2 5 20 12 3 2 32 6 12 27 . 17 39 27 8 23 42 Power 35 | 1 . . . . 1 1 1 . . 2 4 2 . 1 2 . . 3 . 2 . 9 2 . 4 Engine 5 | 1 . . . . 1 1 1 . . . . 1 . . . . . . . . . . . . . Core 8 | . . . . . . . . . . 2 4 . . 1 1 . . . . . . . . . . Reactor 22 | . . . . . . . . . . . . 1 . . 1 . . 3 . 2 . 9 2 . 4 Propulsion 51 | 2 1 . . . . . 7 . . . . 1 . . 6 1 2 5 . 6 6 4 1 4 5 Treads 2 | . . . . . . . . . . . . . . . . . . . . 1 . . . . 1 Leg 1 | . . . . . . . . . . . . . . . . . . . . . 1 . . . . Wheel 4 | 2 1 . . . . . 1 . . . . . . . . . . . . . . . . . . Hover 43 | . . . . . . . 6 . . . . 1 . . 6 1 2 5 . 5 5 4 1 3 4 Flight 1 | . . . . . . . . . . . . . . . . . . . . . . . . 1 . Utility 126 | 2 2 3 1 . 2 4 . 1 1 3 4 4 . . 10 4 6 10 . 7 13 8 3 17 21 Device 81 | 2 . 1 1 . . 2 . . . 1 3 2 . . 7 4 4 6 . 7 8 7 3 12 11 Storage 4 | . . . . . . . . . . . . . . . . . . . . . 4 . . . . Processor 7 | . . . . . . 2 . . . . . . . . 2 . 1 . . . . 1 . . 1 Hackware 9 | . 2 . . . 1 . . . 1 2 . . . . 1 . . . . . . . . . 2 Protection 20 | . . 2 . . 1 . . 1 . . 1 2 . . . . 1 4 . . 1 . . 2 5 Artifact 5 | . . . . . . . . . . . . . . . . . . . . . . . . 3 2 Weapon 131 | 2 5 1 4 . 3 2 17 3 1 . 12 5 3 1 14 1 4 9 . 2 20 6 2 2 12 Energy Gun 15 | 1 2 . 1 . 1 . 2 . . . 2 1 . . 2 . . . . . 1 1 1 . . Energy Cannon 57 | . . . 2 . 1 . 3 . . . 5 2 1 . 8 1 4 8 . 2 10 3 1 1 5 Ballistic Gun 14 | 1 1 . . . . . 1 . . . . . . . . . . . . . 4 2 . 1 4 Ballistic Cannon 3 | . . . . . . 1 . . . . . . . . . . . . . . 2 . . . . Launcher 9 | . 1 1 . . . . 4 . . . 1 . . . 1 . . 1 . . . . . . . Special Weapon 5 | . 1 . . . . . . . . . . . . . . . . . . . 1 . . . 3 Impact Weapon 6 | . . . . . . . 5 . . . . . . . . . . . . . 1 . . . . Slashing Weapon 11 | . . . . . 1 1 . 2 . . 2 1 . 1 2 . . . . . 1 . . . . Piercing Weapon . | . . . . . . . . . . . . . . . . . . . . . . . . . . Special Melee Weapon 11 | . . . 1 . . . 2 1 1 . 2 1 2 . 1 . . . . . . . . . . Unidentified Prototypes 33 | . . 1 3 . . . 9 . . . . 1 . . 1 . 1 1 . . 10 . 1 3 2 Parts Lost 5 | . . . . . . . . . . . . . . . 1 1 . . . . . . . . 3 Power . | . . . . . . . . . . . . . . . . . . . . . . . . . . Propulsion . | . . . . . . . . . . . . . . . . . . . . . . . . . . Utility 3 | . . . . . . . . . . . . . . . . 1 . . . . . . . . 2 Weapon 2 | . . . . . . . . . . . . . . . 1 . . . . . . . . . 1 Highest Loss Streak 1 | . . . . . . . . . . . . . . . 1 1 . . . . . . . . 1 To Critical Strikes 1 | . . . . . . . . . . . . . . . . . . . . . . . . . 1 Average Slot Usage (%) 94 | . 100 100 95 87 89 90 91 93 93 93 97 99 100 100 94 89 90 89 90 94 94 94 94 95 95 Engine 4 | . 13 12 12 12 10 9 6 6 6 5 5 5 5 5 . . . . . . . . . . . Core 1 | . . . . . . . . . . 1 4 5 5 5 4 4 4 1 . . . . . . . Reactor 3 | . . . . . . . . . . . . . . . 3 4 4 6 9 8 8 7 7 8 7 Wheel 5 | . 26 25 25 25 20 18 7 . . . . . . . . . . . . . . . . . . Hover 20 | . . . . . . . 18 33 33 28 26 26 30 30 27 27 27 26 27 26 24 24 25 24 23 Device 22 | . 24 12 12 12 10 17 14 13 13 11 13 12 15 15 19 26 26 24 27 29 30 28 29 31 34 Storage 1 | . . . . . . . . . . . . . . . . . . . . . 1 4 4 4 4 Processor 5 | . . . . . . . 6 6 6 5 5 5 5 5 7 9 9 9 9 8 8 8 8 8 8 Hackware 10 | . 7 13 12 12 20 18 14 13 13 21 21 19 15 15 11 9 9 9 9 8 8 8 8 8 1 Protection 4 | . . 10 12 12 10 9 6 6 6 5 5 8 10 10 4 . . 2 . . 1 . . . 3 Energy Gun 5 | . 17 12 11 12 9 9 8 6 6 5 3 8 10 10 2 . . . . . 1 3 4 4 4 Energy Cannon 2 | . . . . . . . 1 . . . 2 . . . 2 3 4 3 4 8 6 3 4 4 2 Ballistic Gun 1 | . 8 . . . . . . . . . . . . . . . . . . . 2 3 4 3 3 Slashing Weapon 1 | . . . . . 8 9 . 5 . . 3 4 1 4 4 4 4 4 4 4 1 . . . . Peak Build Rating 214 | 9 12 20 35 35 42 51 81 76 77 95 106 103 107 101 143 132 144 154 148 172 189 192 199 214 210 Average Rating 120 | 4 10 14 21 35 40 47 64 75 76 88 96 98 101 100 125 129 135 146 147 160 179 189 193 201 204 On Entrance 98 | . 9 12 15 35 35 42 51 73 76 77 95 94 102 100 101 132 131 142 148 147 172 189 191 199 203 Naked Turns . | . . . . . . . . . . . . . . . . . . . . . . . . . . Heaviest Build 90 | 10 11 17 27 17 26 33 42 36 35 49 64 54 55 49 63 50 58 62 52 73 72 69 73 80 90 Greatest Support 105 | 20 20 20 20 20 20 20 42 42 42 42 42 49 49 49 54 54 60 76 66 71 90 90 90 100 105 Greatest Overweight (x) 8 | . . . 1 . 1 1 4 . . 1 1 1 1 . 1 . . 1 . 1 8 . . 1 1 Average Overweight (x) . | . . . . . . 1 . . . . . . . . . . . . . . . . . . . Largest Inventory Capacity 6 | 1 1 2 4 4 4 4 4 4 4 4 5 5 5 5 5 5 6 6 6 6 6 6 6 6 6 Average Capacity 4 | . 1 1 2 4 4 4 4 4 4 4 4 5 5 5 5 5 5 6 6 6 6 6 6 6 6 Most Carried 6 | 1 1 2 4 4 4 4 4 4 4 4 5 5 5 5 5 5 6 6 6 6 6 6 6 6 6 Average Carried 4 | . . 1 2 4 3 4 3 3 3 3 3 4 5 4 4 5 5 5 5 5 5 6 5 5 4 Final Capacity 6 | 1 1 2 4 4 4 4 4 4 4 4 5 5 5 5 5 5 6 6 6 6 6 6 6 6 6 Final Carried 6 | 1 1 2 4 4 4 4 4 3 4 4 5 5 5 4 5 5 6 6 5 6 6 6 6 6 5 Class Distribution -------------------- 24% | Hacker-Mutant 22% | Hacker-Scout 11% | Alien-Scout 10% | Wizard-Mutant 8% | Hacker-Ninja 6% | Alien-Skirmisher 4% | Hacker-Skirmisher 4% | Hacker-Sprinter 3% | Mutant Dominant Class ---------------- Mutant | -10/Materials Hacker-Mutant | -10/Mines Hacker-Mutant | -10/Exiles Hacker-Skirmisher | -9/Mines Hacker-Assassin | -8/Materials Hacker-Mutant | -7/Factory Hacker-Mutant | -7/Storage Hacker-Mutant | -7/Recycling Hacker-Mutant | -7/Scraptown Wizard-Mutant | -5/Factory Wizard-Mutant | -5/Extension Wizard-Mutant | -5/Cetus Hacker-Sprinter | -5/Archives Hacker-Sprinter | -5/Hub_04(d) Hacker-Scout | -4/Factory Hacker-Scout | -4/Waste Hacker-Scout | -4/Factory Hacker-Scout | -4/Armory Hacker-Ninja | -4/Lab Hacker-Ninja | -3/Research Hacker-Scout | -3/Testing Hacker-Scout | -2/Research Hacker-Scout | -2/Quarantine Hacker-Scout | -2/Section 7 Alien-Scout | -1/Access Resources | -11 -10 -10 -10 -9 -8 -7 -7 -7 -7 -5 -5 -5 -5 -5 -4 -4 -4 -4 -4 -3 -3 -2 -2 -2 -1 ----------- Run | Yrd Mat Min Exi Min Mat Fac Sto Rec Scr Fac Ext Cet Arc Hub Fac Was Fac Arm Lab Res Tes Res Qua Sec Acc Matter Collected 6984 | 280 152 60 . 50 60 47 383 77 35 24 307 163 30 41 291 151 141 208 . 348 538 432 68 577 2521 Remotely . | . . . . . . . . . . . . . . . . . . . . . . . . . . Salvage Created 23259 | 149 808 129 . . 92 432 1287 771 . 11 973 141 370 356 866 1054 307 777 . 763 849 2676 106 892 9450 Parts 1096 | 9 62 18 . . 6 24 55 21 . 3 51 14 7 14 40 23 15 43 . 32 36 124 7 27 465 Haulers Intercepted 5 | . 2 . . . . . . . . . . . . . . . . . . . . . . . 3 Recyclers Shooed 9 | . . . . . . . 1 1 . . . . . . . . 1 . . . 1 1 . . 4 Parts Field Recycled . | . . . . . . . . . . . . . . . . . . . . . . . . . . Retrieved Matter . | . . . . . . . . . . . . . . . . . . . . . . . . . . Parts Self-Destructed . | . . . . . . . . . . . . . . . . . . . . . . . . . . Prevented . | . . . . . . . . . . . . . . . . . . . . . . . . . . Kills | -11 -10 -10 -10 -9 -8 -7 -7 -7 -7 -5 -5 -5 -5 -5 -4 -4 -4 -4 -4 -3 -3 -2 -2 -2 -1 ------- Run | Yrd Mat Min Exi Min Mat Fac Sto Rec Scr Fac Ext Cet Arc Hub Fac Was Fac Arm Lab Res Tes Res Qua Sec Acc Combat Hostiles Destroyed 311 | . 18 10 . . 1 7 22 3 . . 12 3 6 3 14 2 8 14 . 9 11 25 . 9 134 Melee 15 | . . . . . . 2 . 3 . . 4 . . 2 3 . . . . . . . . . 1 Guns 169 | . 15 7 . . 1 5 11 . . . 4 . . 1 . . . . . . . 8 . 6 111 Cannons 37 | . . . . . . . . . . . 2 . . . 1 1 1 7 . 6 6 7 . 1 5 AOE 33 | . 2 3 . . . . 8 . . . . . 4 . 3 . . 3 . . 2 . . . 8 Classes Destroyed 26 | 2 6 . . . 1 2 4 . . . 1 . . . . 1 1 1 . 2 1 . . . 4 Worker 20 | . 1 . . . . . . . . . . . . 4 . . . . . 2 2 2 . . 9 Builder 15 | . . . . . . . 1 . . . 1 . . . 1 . . . . 1 1 3 . . 7 Tunneler 5 | 3 . . . . . . . . . . . . . . . . . . . . . . . . 2 Hauler 5 | . 2 . . . . . . . . . . . . . . . . . . . . . . . 3 Recycler 17 | 1 . . . . . . 3 4 . . 2 . . . . . . . . . 2 1 . . 4 Carrier 3 | . . . . . . . . . . . . . . . . . . . . . . . . . 3 Mechanic 2 | . . . . . . . 1 . . . . . . . . . . . . . . . . . 1 Operator 11 | . 4 . . . 1 1 . . . 1 . . . . 2 . . . . . . . . 1 1 Drone 1 | . . . . . . . . . . . . . . . . . . . . . . . . . 1 Watcher 44 | . 3 . . . . . 1 . . . 1 1 . 1 3 . . 1 . 3 3 12 3 4 8 Swarmer 30 | . 5 3 . . . . . . . . . . . . 5 . . . . . . . . 2 15 Cutter 4 | . . . . . . . . . . . . . . . . . . 4 . . . . . . . Saboteur 9 | . . . . . . . . . . . . . . . . . . . . . . . . . 9 Grunt 102 | . 13 7 . . . 2 12 1 . . 5 . 6 . 4 . 2 . . 4 3 10 . . 33 Brawler 5 | . . . . . . . . . . . . . . . . . . . . . . . . . 5 Duelist 10 | . . . . . . . 1 . . . . . . . . . . . . . . . . . 9 Protector 7 | . . . . . . . 1 . . . . . . . . . . . . . . . . . 6 Sentry 40 | . . . . . 1 2 6 1 . . 5 . . 2 1 . 4 4 . . . 5 . 4 5 Hunter 39 | . . . . . . 1 . . . . . . . 1 2 . 1 4 . 3 3 7 . 2 15 Programmer 42 | . . . . . . 2 1 1 . . 1 . . . 2 . 1 2 . . 2 3 . 1 26 Behemoth 2 | . . . . . . . . . . . 1 . . . . . . . . . . . . . 1 Compactor 2 | . . . . . . . . . . . . . . . . 2 . . . . . . . . . Cetus Guard 3 | . . . . . . . . . . . . 3 . . . . . . . . . . . . . Investigator 1 | . . . . . . . . . . . . . . . . . . . . . . . . . 1 Striker 8 | . . . . . . . . . . . . . . . . . . . . 1 2 . . . 5 Executioner 5 | . . . . . . . . . . . . . . . . . . . . 1 . . . . 4 Alpha 7 1 | . . . . . . . . . . . . . . . . . . . . . 1 . . . . Wasp 5 | . . . . . . . . . . . . . . . . 5 . . . . . . . . . Thug 8 | . . . . . . . 1 . . . . . . . . 5 2 . . . . . . . . Savage 2 | . . . . . . . . . . . . . . . . . 2 . . . . . . . . Best Kill Streak 33 | 3 5 3 . . 1 2 10 3 . 1 5 3 6 5 6 1 5 4 . 4 4 6 1 5 33 Combat Bots Only 29 | . 4 3 . . 1 2 8 2 . . 4 3 6 1 4 1 5 4 . 4 3 4 . 2 29 Max Kills in Single Turn 5 | 1 1 2 . . 1 1 5 1 . 1 2 1 2 3 3 1 2 1 . 1 1 2 1 1 3 Gunslinging . | . . . . . . . . . . . . . . . . . . . . . . . . . . Exploded 4 | . 1 2 . . . . 4 . . . . . 2 . 3 . . 1 . . 1 . . . 3 Melee 1 | . . . . . . 1 . 1 . . 1 . . 1 1 . . . . . . . . . 1 Uniques/NPCs Destroyed . | . . . . . . . . . . . . . . . . . . . . . . . . . . Combat | -11 -10 -10 -10 -9 -8 -7 -7 -7 -7 -5 -5 -5 -5 -5 -4 -4 -4 -4 -4 -3 -3 -2 -2 -2 -1 -------- Run | Yrd Mat Min Exi Min Mat Fac Sto Rec Scr Fac Ext Cet Arc Hub Fac Was Fac Arm Lab Res Tes Res Qua Sec Acc Hostile Shots Fired 1517 | . 76 40 . . 2 70 105 67 . . 110 41 . 25 116 1 24 65 . 4 67 102 2 42 558 Missed 727 | . 29 12 . . 1 30 66 18 . . 35 15 . 11 57 . 14 31 . 2 30 51 1 26 298 Damage Taken 14756 | 29 522 358 . . 13 389 250 434 . . 1279 707 . 365 1154 147 155 692 . 121 983 1182 44 363 5569 Core 10838 | 23 423 266 . . 5 242 155 309 . . 880 505 . 266 835 113 126 516 . 99 754 951 35 277 4058 Absorbed by Shields 749 | . . . . . . 8 74 . . . 490 119 . . . . 58 . . . . . . . . Redirected to Core 9427 | 23 311 189 . . 5 172 118 224 . . 772 476 . 266 780 113 98 447 . 76 618 844 35 207 3653 Ignored by Resistances 285 | . . . . . . . . . . . . . . . . . . . . . . . . . 285 Regen/Repaired (Parts) 2 | . . . . . . . . . . . . . . . . 2 . . . . . . . . . Core Remaining (%) 79 | 96 . . . 100 99 . . . 67 . . . . 66 . . . . 100 . 100 . . 74 11 Volleys Fired 1492 | 10 83 44 . . 1 . 10 . . . 33 13 2 5 49 27 21 90 2 78 138 192 32 134 528 Largest 3 | 2 2 1 . . 1 . 1 . . . 2 2 1 2 1 1 1 1 1 1 1 1 1 2 3 Hottest 211 | 60 100 40 . . 60 . 60 . . . 171 162 60 162 120 120 120 120 88 120 120 81 81 130 211 Shots Fired 1698 | 20 164 44 . . 5 23 58 . . 2 61 15 2 8 49 25 20 85 2 78 138 192 32 135 540 Gun 1008 | 20 162 42 . . 4 23 52 . . 2 28 3 . 8 6 . . . . . 21 91 28 97 421 Cannon 671 | . . . . . 1 . 4 . . . 30 12 2 . 41 25 20 82 2 78 115 101 4 38 116 Launcher 12 | . . 2 . . . . 2 . . . 3 . . . 2 . . 3 . . . . . . . Special 7 | . 2 . . . . . . . . . . . . . . . . . . . 2 . . . 3 Kinetic 507 | 10 72 . . . . . . . . . . . . . . . . . . . 19 27 . 31 348 Thermal 575 | . 2 . . . 4 23 48 . . 2 56 3 . 8 17 25 4 49 . 35 63 64 28 66 78 Explosive 12 | . . 2 . . . . 2 . . . 3 . . . 2 . . 3 . . . . . . . Electromagnetic 599 | 10 90 42 . . 1 . 8 . . . 2 12 2 . 30 . 16 33 2 43 54 101 4 38 111 Robot Hit Streak 26 | 4 12 9 . . 5 14 23 . . 6 17 4 . 1 12 7 7 13 . 8 16 13 4 15 26 Robot Miss Streak 8 | 2 8 2 . . . 1 1 . . . 3 3 1 2 4 1 3 7 . 2 2 4 1 5 6 Penetration Max 3 | . . . . . . . . . . . . . . . . . . . . . . 2 . . 3 Secondary Targets 2 | . 2 . . . . . . . . . . . . . . . . . . . . . . . . Max Gunslinging Chain 1 | . 1 . . . . . . . . . . . . . . . . . . . . . . . . Capacitor 808 | . . . . . . . . . . . . . . . 27 21 11 82 2 76 117 161 32 103 176 Autonomous 101 | . . . . . 4 23 48 . . 2 24 . . . . . . . . . . . . . . Shots Hit Robots 1230 | 12 97 30 4 . 5 24 57 29 17 2 73 7 1 11 44 60 27 36 . 34 73 102 3 60 422 Core Hits 863 | 6 45 17 . . 2 11 46 8 . 1 33 42 11 12 18 12 15 20 . 18 43 59 2 28 414 Critical Kills 146 | . . . . . . . . . . . 1 . . . . 1 . . . . 1 10 . 5 128 Critical Parts Destroyed 245 | . . . . . . . 2 . . . . . . . 1 . . . . . 6 8 . 11 217 Critical Strikes 469 | . . 1 . . 1 . 2 2 . . 4 . . 3 2 4 3 1 . 2 13 22 . 20 389 Meltdown 3 | . . . . . . . . . . . 1 . . . . 1 . . . . 1 . . . . Destroy 440 | . . . . . . . . . . . . . . . 1 . . . . . 11 20 . 20 388 Blast 1 | . . . . . . . . . . . . . . . . . . . . . 1 . . . . Corrupt 8 | . . 1 . . . . . . . . . . . . 1 . . 1 . 2 . 2 . . 1 Smash 2 | . . . . . . . 2 . . . . . . . . . . . . . . . . . . Sever 15 | . . . . . 1 . . 2 . . 3 . . 3 . 3 3 . . . . . . . . Melee Attacks 326 | . . . 4 . 7 11 25 38 17 . 34 . 1 25 64 41 26 21 . 4 8 . . . . Impact 28 | . . . . . . . 23 . . . . . . . . . . . . . 5 . . . . Slashing 250 | . . . . . 7 11 1 28 . . 21 . . 25 62 41 26 21 . 4 3 . . . . Piercing . | . . . . . . . . . . . . . . . . . . . . . . . . . . Sneak Attacks 118 | . . . 4 . 1 1 4 14 17 . 15 . 1 2 3 40 13 . . 2 1 . . . . Combat Hostiles 13 | . . . . . . . 1 10 . . 1 . . 1 . . . . . . . . . . . Follow-up Attacks . | . . . . . . . . . . . . . . . . . . . . . . . . . . Damage Inflicted 41663 | 170 1398 615 . . 183 784 3042 1050 . 57 2696 603 975 998 2253 4389 2297 1788 . 1468 2830 3654 290 1476 8647 Guns 11680 | 125 1153 411 . . 123 651 1288 . . 57 719 . . 51 112 . . . . . 191 487 . 377 5935 Cannons 14483 | . . . . . . . . . . . 723 40 6 . 976 982 677 1398 . 1280 2069 3167 190 1025 1950 Explosions 7128 | 45 245 204 . . . . 1379 . . . 470 563 969 403 327 . 797 390 . . 400 . 100 74 762 Melee 8372 | . . . . . 60 133 375 1050 . . 784 . . 544 838 3407 823 . . 188 170 . . . . Ramming . | . . . . . . . . . . . . . . . . . . . . . . . . . . Kinetic 6360 | 22 299 . . . . . . . . . . . . . . . . . . . 293 288 . 258 5200 Thermal 8156 | 45 245 63 . . 123 651 1249 . . 57 1434 . . 51 150 982 254 500 . 82 743 199 100 193 1035 Explosive 1421 | . . 141 . . . . 294 . . . 345 . . . 289 . . 352 . . . . . . . Electromagnetic 17354 | 103 854 411 . . . . 1124 . . . 133 603 975 403 976 . 1220 936 . 1198 1624 3167 190 1025 2412 Impact 545 | . . . . . . . 375 . . . . . . . . . . . . . 170 . . . . Slashing 7827 | . . . . . 60 133 . 1050 . . 784 . . 544 838 3407 823 . . 188 . . . . . Piercing . | . . . . . . . . . . . . . . . . . . . . . . . . . . Highest Corruption 33 | . . . . . 3 . 9 9 . . 5 18 24 24 7 25 31 33 33 4 5 . . 1 . Average Corruption 12 | . . . . . 3 . 6 9 . . 4 14 21 24 6 18 25 31 33 3 3 . . 1 . Corruption Purged 6 | . . . . . . . . . . . . . . . . . . . . 4 2 . . . . Corruption Blocked . | . . . . . . . . . . . . . . . . . . . . . . . . . . Effects 213 | . . . . . 6 . 26 22 . . 25 17 4 17 19 13 22 31 1 5 5 . . . . Message Errors 57 | . . . . . 1 . 8 7 . . 8 3 1 3 4 4 6 6 1 1 4 . . . . Matter Fused 51 | . . . . . 1 . 10 7 . . 8 4 1 4 3 1 4 8 . . . . . . . Heat Flow Errors 27 | . . . . . . . 3 2 . . . 3 1 3 7 1 1 4 . 2 . . . . . Energy Discharges 20 | . . . . . 3 . 3 1 . . 1 1 1 2 1 2 2 2 . 1 . . . . . Parts Rejected 2 | . . . . . . . . . . . . . . 1 . . . 1 . . . . . . . Parts Fused 3 | . . . . . . . . . . . 1 1 . . . 1 . . . . . . . . . Data Loss (minor) 24 | . . . . . 1 . 1 4 . . 4 3 . 1 2 . 4 3 . 1 . . . . . Data Loss (major) 8 | . . . . . . . 1 1 . . 1 . . . . 2 1 1 . . 1 . . . . Misfires 6 | . . . . . . . . . . . 2 1 . 2 1 . . . . . . . . . . Alerts 3 | . . . . . . . . . . . . 1 . . . . 1 1 . . . . . . . Misdirections 2 | . . . . . . . . . . . . . . . . . 2 . . . . . . . . Weapon Failures 10 | . . . . . . . . . . . . . . 1 1 2 1 5 . . . . . . . Overload Shots . | . . . . . . . . . . . . . . . . . . . . . . . . . . Overflow Damage 2228 | . . . . . . 24 226 289 . . 70 . . 46 127 497 31 28 . 99 399 183 76 119 14 Projectiles 666 | . . . . . . . . . . . 23 . . . . . 31 28 . 34 258 183 . 97 12 Explosions 209 | . . . . . . . 40 . . . 22 . . 46 . . . . . . 1 . 76 22 2 Melee 1353 | . . . . . . 24 186 289 . . 25 . . . 127 497 . . . 65 140 . . . . Knockbacks 2 | . . . . . . . 1 . . . . . . . . . . . . . 1 . . . . Impact 2 | . . . . . . . 1 . . . . . . . . . . . . . 1 . . . . Kinetic . | . . . . . . . . . . . . . . . . . . . . . . . . . . Secondary . | . . . . . . . . . . . . . . . . . . . . . . . . . . Self-Inflicted Damage 467 | 29 31 22 . . . . . . . . . . . 97 48 . . 195 . . 45 . . . . Shots 11 | 1 1 2 . . . . . . . . . . . 1 1 . . 4 . . 1 . . . . Rammed . | . . . . . . . . . . . . . . . . . . . . . . . . . . Targets Rammed . | . . . . . . . . . . . . . . . . . . . . . . . . . . Kicked . | . . . . . . . . . . . . . . . . . . . . . . . . . . Crushed . | . . . . . . . . . . . . . . . . . . . . . . . . . . Highest Temperature 471 | 32 156 61 . . 30 5 280 182 . . 292 212 213 346 410 245 212 229 102 199 471 190 . 309 . Average Temperature 84 | 16 35 26 . . 20 5 71 82 . . 100 80 88 145 130 108 86 91 57 86 88 76 . 118 . Received Heat Transfer 1309 | . 222 153 . . . 90 80 147 . . 113 58 . 45 9 . 38 9 . . 30 90 9 9 207 Effects 8 | . . . . . . . . . . . . . . . 6 . . . . . 1 . . 1 . Shutdowns 2 | . . . . . . . . . . . . . . . 1 . . . . . 1 . . . . Interference 5 | . . . . . . . . . . . . . . . 5 . . . . . . . . . . Matter Decay 1 | . . . . . . . . . . . . . . . . . . . . . . . . 1 . Siege Activations . | . . . . . . . . . . . . . . . . . . . . . . . . . . Robots Corrupted 63 | . 1 . . . . . 5 . . . . 3 2 . 7 . 7 4 . 4 5 11 1 4 9 Combat Hostiles 54 | . 1 . . . . . 3 . . . . 3 2 . 7 . 7 4 . 3 3 10 . 2 9 Parts Fried 157 | . 2 1 . . . . 14 . . . . 5 8 2 15 . 8 6 . 12 18 32 2 12 20 Impact Corruptions 9 | . . . . . . . 5 . . . . . . . . . . . . . 4 . . . . Robots Melted 4 | . . . . . . . . . . . 2 . . . . 1 . . . . 1 . . . . Combat Hostiles 3 | . . . . . . . . . . . 2 . . . . 1 . . . . . . . . . Parts Melted 34 | . . . . . . 3 5 . . . 6 . . . 8 2 . 1 . . 4 1 . 1 3 Heat Transferred 8115 | 50 300 100 . . 148 777 1567 . . 74 1591 . . 74 198 851 148 370 . 74 481 185 50 161 916 Parts Sabotaged 5 | . . . . . . . . . . . . . . . . . . . . . . . . . 5 Parts Stolen . | . . . . . . . . . . . . . . . . . . . . . . . . . . Parts Stripped . | . . . . . . . . . . . . . . . . . . . . . . . . . . Power Chain Reactions 14 | 1 5 1 . . . . 1 . . . . . . . 1 . . 1 . . 1 . 1 1 1 Latent Energy Used 2756 | . . . . . 170 . 437 . . . 86 291 400 . . . 400 . . . 334 . . . 638 LE Corruption 61 | . . . . . 3 . 8 . . . 3 13 6 . . . 6 . . . 5 . . . 17 Alert | -11 -10 -10 -10 -9 -8 -7 -7 -7 -7 -5 -5 -5 -5 -5 -4 -4 -4 -4 -4 -3 -3 -2 -2 -2 -1 ------- Run | Yrd Mat Min Exi Min Mat Fac Sto Rec Scr Fac Ext Cet Arc Hub Fac Was Fac Arm Lab Res Tes Res Qua Sec Acc Peak Influence 4123 | 20 259 97 . . 148 199 508 182 . 115 289 430 526 844 847 408 1089 996 . 276 709 948 625 477 4123 Initial 533 | . 13 . . . . 67 49 166 . . 2 161 92 170 413 287 285 533 . . 120 314 513 18 146 Average 448 | 7 121 53 . . 92 98 287 65 . 39 118 273 361 297 543 376 562 759 . 78 420 573 473 286 1290 Maximum Alert Level 5 | . 1 . . . . . 2 . . . 1 2 2 3 3 2 3 3 . 1 3 3 2 2 5 Low Security (%) 40 | 100 75 100 . 100 100 100 17 100 . 100 63 9 33 19 . . . . . 90 16 . 14 16 3 Level 1 21 | . 24 . . . . . 61 . . . 36 70 4 70 26 37 38 . . 9 25 16 . 72 9 Level 2 21 | . . . . . . . 20 . . . . 20 62 6 48 62 26 36 . . 55 63 85 10 26 Level 3 8 | . . . . . . . . . . . . . . 3 24 . 34 63 . . 1 20 . . 13 Level 4 2 | . . . . . . . . . . . . . . . . . . . . . . . . . 16 Level 5 2 | . . . . . . . . . . . . . . . . . . . . . . . . . 11 High Security 3 | . . . . . . . . . . . . . . . . . . . . . . . . . 19 Max Security . | . . . . . . . . . . . . . . . . . . . . . . . . . . Sterilizations 1 | . . . . . . . . . . . . . . . . . . . . . . . . . 1 Squads Dispatched 93 | . 5 1 . 1 . 2 7 . . 1 3 . . 4 3 . 4 3 . 6 1 8 1 5 38 Investigation 20 | . 2 1 . . . . 1 . . 1 . . . . 1 . 1 . . 5 . 3 . 2 3 Extermination 11 | . . . . . . 1 1 . . . . . . . 1 . . . . . 1 3 . 1 3 Reinforcement 26 | . 3 . . . . 1 1 . . . 3 . . 4 1 . 3 3 . 1 . 2 . 2 2 Assault 31 | . . . . 1 . . 2 . . . . . . . . . . . . . . . 1 . 27 Garrison 5 | . . . . . . . 2 . . . . . . . . . . . . . . . . . 3 Intercept . | . . . . . . . . . . . . . . . . . . . . . . . . . . Searches Triggered . | . . . . . . . . . . . . . . . . . . . . . . . . . . Construction Impeded 4 | . . . . . . . . . . . 2 . . . . . 1 . . . . . . . 1 Haulers Reinforced 4 | . . . . . . . . . . . . . . . . . 2 . . 1 . 1 . . . Active Scanning Responses . | . . . . . . . . . . . . . . . . . . . . . . . . . . Cargo Convoy Interrupts . | . . . . . . . . . . . . . . . . . . . . . . . . . . Stealth | -11 -10 -10 -10 -9 -8 -7 -7 -7 -7 -5 -5 -5 -5 -5 -4 -4 -4 -4 -4 -3 -3 -2 -2 -2 -1 --------- Run | Yrd Mat Min Exi Min Mat Fac Sto Rec Scr Fac Ext Cet Arc Hub Fac Was Fac Arm Lab Res Tes Res Qua Sec Acc Distress Signals 19 | . 2 . . . . 1 2 . . . . 2 . 3 2 . 1 2 . 3 . . . . 1 Communications Jammed 99 | . . . . . . . . . . . . . . . . . . . . 7 . 24 1 9 58 Distress Signals 98 | . . . . . . . . . . . . . . . . . . . . 7 . 24 1 9 57 Times Spotted 541 | . 33 11 . . 5 9 26 5 . 1 23 10 1 14 34 5 18 19 . 23 15 43 4 22 220 Peak Tracking Total 22 | . 4 3 . . 3 2 5 2 . 1 4 5 4 9 7 3 7 4 . 6 3 5 1 5 22 Tactical Retreats 57 | . 3 1 . . . . 2 . . . 1 . . 1 7 . 2 3 . 4 1 4 . 6 22 Traps | -11 -10 -10 -10 -9 -8 -7 -7 -7 -7 -5 -5 -5 -5 -5 -4 -4 -4 -4 -4 -3 -3 -2 -2 -2 -1 ------- Run | Yrd Mat Min Exi Min Mat Fac Sto Rec Scr Fac Ext Cet Arc Hub Fac Was Fac Arm Lab Res Tes Res Qua Sec Acc Traps Triggered 23 | . 2 . . . . 1 . . . . . . . 1 2 . . 2 . 4 2 5 . . 4 Indirectly 1 | . . . . . . . . . . . . . . 1 . . . . . . . . . . . Trap Hack Attempts . | . . . . . . . . . . . . . . . . . . . . . . . . . . Triggered . | . . . . . . . . . . . . . . . . . . . . . . . . . . Disarmed . | . . . . . . . . . . . . . . . . . . . . . . . . . . Reprogrammed 20 | . . . . . . . . . . . . . . . . . . . . . 6 . 6 8 . Reused 8 | . . . . . . . . . . . . . . . . . . . . . 4 . . 4 . Traps Extracted . | . . . . . . . . . . . . . . . . . . . . . . . . . . Installed . | . . . . . . . . . . . . . . . . . . . . . . . . . . Triggered 10 | . . . . . . . 1 . . . . . . . . . . 1 . . 4 . . 4 . Machines | -11 -10 -10 -10 -9 -8 -7 -7 -7 -7 -5 -5 -5 -5 -5 -4 -4 -4 -4 -4 -3 -3 -2 -2 -2 -1 ---------- Run | Yrd Mat Min Exi Min Mat Fac Sto Rec Scr Fac Ext Cet Arc Hub Fac Was Fac Arm Lab Res Tes Res Qua Sec Acc Machines Disabled 50 | . . . . . 1 . 4 . . . . 1 2 9 . . 2 8 1 . 8 . 1 8 5 Max in Single Turn 8 | . . . . . 1 . 1 . . . . 1 1 8 . . 2 1 1 . 1 . 1 1 1 Garrison Access 12 | . . . . . . . . . . . . . . . . . 2 . . 2 1 2 1 1 3 Network Hub 1 | . . . . . . . . . . . . . . 1 . . . . . . . . . . . Machines Repaired . | . . . . . . . . . . . . . . . . . . . . . . . . . . Machines Dismantled . | . . . . . . . . . . . . . . . . . . . . . . . . . . Machines Sabotaged . | . . . . . . . . . . . . . . . . . . . . . . . . . . Overloaded Fab Kills . | . . . . . . . . . . . . . . . . . . . . . . . . . . Hacking | -11 -10 -10 -10 -9 -8 -7 -7 -7 -7 -5 -5 -5 -5 -5 -4 -4 -4 -4 -4 -3 -3 -2 -2 -2 -1 --------- Run | Yrd Mat Min Exi Min Mat Fac Sto Rec Scr Fac Ext Cet Arc Hub Fac Was Fac Arm Lab Res Tes Res Qua Sec Acc Machines Accessed 148 | . 7 1 1 . 4 7 7 3 . 8 10 3 . 3 6 . 4 8 . 16 10 16 7 15 12 Terminals 126 | . 7 . . . 4 6 7 3 . 7 10 3 . 3 5 . 2 8 . 12 9 13 6 14 7 Fabricators 7 | . . . . . . 1 . . . 1 . . . . 1 . . . . 2 . 1 . . 1 Repair Stations 2 | . . . . . . . . . . . . . . . . . . . . . . . . . 2 Recycling Units . | . . . . . . . . . . . . . . . . . . . . . . . . . . Scanalyzers . | . . . . . . . . . . . . . . . . . . . . . . . . . . Garrison Access 11 | . . . . . . . . . . . . . . . . . 2 . . 2 1 2 1 1 2 Total Hacks 579 | . 20 1 1 . 19 20 16 13 . 35 22 9 . 8 40 . 15 30 . 79 47 74 28 65 37 Successful 342 | . 12 1 1 . 10 8 10 9 . 30 18 9 . 5 21 . 6 18 . 42 28 37 20 40 17 Failed 234 | . 7 . . . 8 12 6 4 . 4 4 . . 3 19 . 9 12 . 37 19 37 8 25 20 Catastrophic 24 | . . . . . 1 1 . . . 1 . . . 1 1 . 1 1 . 4 1 8 . . 4 Database Lockouts 3 | . 1 . . . 1 . . . . 1 . . . . . . . . . . . . . . . Manual 222 | . 10 . 1 . 13 13 7 6 . 19 12 1 . 4 18 . 5 5 . 22 24 30 6 25 1 Terminals 527 | . 20 . . . 19 18 16 13 . 33 22 9 . 8 36 . 10 30 . 66 46 66 27 64 24 Fabricators 20 | . . . . . . 2 . . . 2 . . . . 4 . . . . 7 . 4 . . 1 Repair Stations 9 | . . . . . . . . . . . . . . . . . . . . . . . . . 9 Recycling Units . | . . . . . . . . . . . . . . . . . . . . . . . . . . Scanalyzers . | . . . . . . . . . . . . . . . . . . . . . . . . . . Garrison Access 21 | . . . . . . . . . . . . . . . . . 5 . . 6 1 4 1 1 3 Terminal Hacks 249 | . 8 1 1 . 7 4 9 6 . 24 12 9 . 4 18 . 3 13 . 29 21 25 15 27 13 Record 17 | . . . 1 . . . . . . . . 8 . . . . . 1 . 2 . 2 . 1 2 Part Schematic 10 | . . . . . . . . . . 2 . . . . 3 . . . . 1 1 2 . . 1 Robot Schematic 1 | . . . . . . . . . . . . . . . . . . . . . . . . 1 . Robot Analysis 24 | . 1 . . . 3 1 . . . 5 1 . . . 6 . . . . 1 3 1 1 1 . Prototype ID Bank 31 | . . . . . . . 1 3 . 3 . . . . 2 . . 1 . 6 5 6 4 . . Open Door 13 | . . 1 . . . . 2 . . . 5 1 . . . . . 2 . . . . . 1 1 Level Access Points 2 | . . . . . . . . . . . . . . . . . . . . 1 . . . . 1 Branch Access Points 7 | . . . . . . 1 . . . 1 . . . . 1 . 1 . . 1 . 1 . . 1 Emergency Access Points 3 | . . . . . . . . . . 2 . . . . . . . 1 . . . . . . . Machine Index 4 | . . . . . . . . . . 1 . . . . 1 . . . . 1 . . . 1 . Terminal Index 8 | . . . . . . . . . . . . . . 1 1 . 1 1 . 1 1 1 . 1 . Fabricator Index 1 | . . . . . . . . . . . . . . . 1 . . . . . . . . . . Alert Level 16 | . . . . . 1 . . . . 1 . . . . 2 . . 1 . 2 2 2 1 3 1 Unreport Threat 22 | . 3 . . . . . 1 1 . 2 . . . . 1 . . 1 . 3 . 2 4 3 1 Locate Traps 36 | . 1 . . . 1 2 3 . . . 3 . . 2 . . . 1 . 3 3 5 2 7 3 Reprogram Traps 4 | . . . . . . . . . . . . . . . . . . . . . 1 . 1 2 . Dispatch Records 1 | . 1 . . . . . . . . . . . . . . . . . . . . . . . . Patrol Status 2 | . . . . . 1 . . . . . . . . . . . . . . 1 . . . . . Assault Status 1 | . . . . . . . . . . . . . . . . . . . . . . . . . 1 Recall Investigation 1 | . . . . . . . . . . 1 . . . . . . . . . . . . . . . Recall Extermination 4 | . . . . . . . . . . . . . . . . . . . . . 1 2 . 1 . Recall Reinforcements 3 | . . . . . . . . . . . 2 . . . . . . . . . . . . 1 . Recall Assault 1 | . . . . . . . . . . . . . . . . . . . . . . . 1 . . Hauler Manifests 9 | . 2 . . . . . . 1 . 1 . . . . . . . 1 . 2 1 . . 1 . Registered Components 1 | . . . . . . . . . . . . . . . . . . . . 1 . . . . . Registered Prototypes 1 | . . . . . . . . . . 1 . . . . . . . . . . . . . . . Zone Layout 26 | . . . . . 1 . 2 1 . 4 1 . . 1 . . 1 3 . 3 3 1 1 3 1 Fabricator Hacks 12 | . . . . . . 1 . . . 2 . . . . 3 . . . . 3 . 2 . . 1 Network Status 3 | . . . . . . 1 . . . . . . . . . . . . . 1 . . . . 1 Load Schematic 4 | . . . . . . . . . . 1 . . . . 1 . . . . 1 . 1 . . . Build 5 | . . . . . . . . . . 1 . . . . 2 . . . . 1 . 1 . . . Repair Station Hacks 1 | . . . . . . . . . . . . . . . . . . . . . . . . . 1 Scan Component 1 | . . . . . . . . . . . . . . . . . . . . . . . . . 1 Recycling Unit Hacks . | . . . . . . . . . . . . . . . . . . . . . . . . . . Scanalyzer . | . . . . . . . . . . . . . . . . . . . . . . . . . . Garrison Access Hacks 10 | . . . . . . . . . . . . . . . . . 2 . . 1 1 2 1 1 2 Seal Access 10 | . . . . . . . . . . . . . . . . . 2 . . 1 1 2 1 1 2 Unauthorized Hacks 70 | . 4 . . . 3 3 1 3 . 4 6 . . 1 . . 1 5 . 9 6 8 4 12 . Terminals 68 | . 4 . . . 3 2 1 3 . 4 6 . . 1 . . 1 5 . 8 6 8 4 12 . Track 26 | . 1 . . . . . . 1 . 1 1 . . . . . . 3 . 5 4 3 . 7 . Assimilate 4 | . . . . . . . . . . . . . . . . . . . . 1 . 1 2 . . Botnet 29 | . 2 . . . 3 2 1 2 . 2 2 . . 1 . . . 2 . 2 2 2 2 4 . Disrupt 4 | . . . . . . . . . . . 2 . . . . . 1 . . . . 1 . . . Operators 5 | . 1 . . . . . . . . 1 1 . . . . . . . . . . 1 . 1 . Fabricators 2 | . . . . . . 1 . . . . . . . . . . . . . 1 . . . . . Liberate 2 | . . . . . . 1 . . . . . . . . . . . . . 1 . . . . . Repair Stations . | . . . . . . . . . . . . . . . . . . . . . . . . . . Recycling Units . | . . . . . . . . . . . . . . . . . . . . . . . . . . Scanalyzers . | . . . . . . . . . . . . . . . . . . . . . . . . . . Garrison Access . | . . . . . . . . . . . . . . . . . . . . . . . . . . Data Cores Recovered 7 | . 1 . . . 1 1 . . . 1 . . . . 1 . . . . . . . . 1 1 Used 2 | . . . . . 1 . . . . 1 . . . . . . . . . . . . . . . Hacking Detections 97 | . 3 . . . 3 6 5 3 . 4 4 . . 3 5 . 2 5 . 10 7 13 3 11 10 Full Trace Events 16 | . . . . . . . 1 . . 1 . . . . 1 . 1 . . 5 . 2 . 2 3 Feedback Events 3 | . . . . . . . 1 . . . . . . . . . . . . . . . . 1 1 Corruption 2 | . . . . . . . 1 . . . . . . . . . . . . . . . . 1 . Hackware Fried 1 | . . . . . . . . . . . . . . . . . . . . . . . . . 1 Feedback Blocked . | . . . . . . . . . . . . . . . . . . . . . . . . . . Robot Schematics Acquired 1 | . . . . . . . . . . . . . . . . . . . . . . . . 1 . Robots Built . | . . . . . . . . . . . . . . . . . . . . . . . . . . Authchips . | . . . . . . . . . . . . . . . . . . . . . . . . . . Time . | . . . . . . . . . . . . . . . . . . . . . . . . . . Total Robot Build Rating . | . . . . . . . . . . . . . . . . . . . . . . . . . . Part Schematics Acquired 10 | . . . . . . . . . . 2 . . . . 3 . . . . 1 1 2 . . 1 Parts Built 8 | . . . . . . . . . . 2 . . . . 3 . . . . 2 . 1 . . . Authchips . | . . . . . . . . . . . . . . . . . . . . . . . . . . Time 343 | . . . . . . . . . . 42 . . . . 153 . . . . 46 . 102 . . . Total Part Build Rating 66 | . . . . . . . . . . 16 . . . . 24 . . . . 18 . 8 . . . Parts Repaired . | . . . . . . . . . . . . . . . . . . . . . . . . . . Time . | . . . . . . . . . . . . . . . . . . . . . . . . . . Parts Recycled . | . . . . . . . . . . . . . . . . . . . . . . . . . . Recycled Matter . | . . . . . . . . . . . . . . . . . . . . . . . . . . Retrieved Matter . | . . . . . . . . . . . . . . . . . . . . . . . . . . Retrieved Components . | . . . . . . . . . . . . . . . . . . . . . . . . . . Parts Scanalyzed . | . . . . . . . . . . . . . . . . . . . . . . . . . . Part Schematics Acquired . | . . . . . . . . . . . . . . . . . . . . . . . . . . Parts Damaged . | . . . . . . . . . . . . . . . . . . . . . . . . . . Bothacking | -11 -10 -10 -10 -9 -8 -7 -7 -7 -7 -5 -5 -5 -5 -5 -4 -4 -4 -4 -4 -3 -3 -2 -2 -2 -1 ------------ Run | Yrd Mat Min Exi Min Mat Fac Sto Rec Scr Fac Ext Cet Arc Hub Fac Was Fac Arm Lab Res Tes Res Qua Sec Acc Used RIF Installer . | . . . . . . . . . . . . . . . . . . . . . . . . . . Robots Hacked 31 | . . . 4 . . . 1 . 16 . 6 . 1 . 1 . . . . . 1 . . . 1 Non-combat 15 | . . . 3 . . . . . 5 . 5 . . . 1 . . . . . . . . . 1 Combat 16 | . . . 1 . . . 1 . 11 . 1 . 1 . . . . . . . 1 . . . . Robot Hacks Applied 35 | . . . 4 . . . 1 . 17 . 6 . 1 . 2 . . . . . 1 . . . 3 parse_system 27 | . . . 4 . . . 1 . 17 . 1 . 1 . 1 . . . . . 1 . . . 1 no_distress 5 | . . . . . . . . . . . 5 . . . . . . . . . . . . . . find_recycling 1 | . . . . . . . . . . . . . . . 1 . . . . . . . . . . find_station 2 | . . . . . . . . . . . . . . . . . . . . . . . . . 2 Relay Couplers Released 3 | . . . . . . . . . . . . . . . . . . . . . . . . . 3 Machine Destruction 2 | . . . . . . . . . . . . . . . . . . . . . . . . . 2 Programmers 1 | . . . . . . . . . . . . . . . . . . . . . . . . . 1 Fabnet Peak Effective % . | . . . . . . . . . . . . . . . . . . . . . . . . . . Robots Rewired 15 | . . . . . . . . 8 . . 7 . . . . . . . . . . . . . . Allies Hacked 1 | . . . . . . . . . . . 1 . . . . . . . . . . . . . . Hacks Repelled . | . . . . . . . . . . . . . . . . . . . . . . . . . . Allies | -11 -10 -10 -10 -9 -8 -7 -7 -7 -7 -5 -5 -5 -5 -5 -4 -4 -4 -4 -4 -3 -3 -2 -2 -2 -1 -------- Run | Yrd Mat Min Exi Min Mat Fac Sto Rec Scr Fac Ext Cet Arc Hub Fac Was Fac Arm Lab Res Tes Res Qua Sec Acc Total Allies 76 | . . . . 1 . 3 12 8 . . 15 5 . . . 19 . . . 4 . 1 2 . 6 Largest Group 19 | . . . . 1 1 3 10 8 7 7 15 15 14 5 . 19 7 . . 3 . 1 2 . 3 Highest-Rated Group 873 | . . . . 31 31 93 173 187 147 147 541 873 873 229 . 684 254 . . 138 . 45 71 . 44 Highest-Rated Ally 159 | . . . . 31 31 31 31 40 32 32 159 159 159 96 . 50 50 . . 46 . 45 45 . 15 Total Orders 29 | . . . . . . . . . . 5 15 4 . 3 . . . . . . . . 2 . . STAY 22 | . . . . . . . . . . 4 11 3 . 2 . . . . . . . . 2 . . FOLLOW 7 | . . . . . . . . . . 1 4 1 . 1 . . . . . . . . . . . Ally Attacks 471 | . . . . . 6 22 62 16 . 14 107 57 30 46 . 53 21 . . 17 . . . . 20 Total Damage 12262 | . . . . . 61 232 680 205 . 330 2950 1227 700 866 . 2564 1780 . . 246 . . . . 421 Kills 54 | . . . . . 1 . 3 1 . 4 11 7 4 4 . 5 12 . . 2 . . . . . Allies Corrupted . | . . . . . . . . . . . . . . . . . . . . . . . . . . Allies Melted . | . . . . . . . . . . . . . . . . . . . . . . . . . . Intel | -11 -10 -10 -10 -9 -8 -7 -7 -7 -7 -5 -5 -5 -5 -5 -4 -4 -4 -4 -4 -3 -3 -2 -2 -2 -1 ------- Run | Yrd Mat Min Exi Min Mat Fac Sto Rec Scr Fac Ext Cet Arc Hub Fac Was Fac Arm Lab Res Tes Res Qua Sec Acc Robot Analysis Total 24 | . 1 . . . 3 1 . . . 5 1 . . . 6 . . . . 1 3 1 1 1 . Derelict Logs Recovered 4 | . . 2 . 2 . . . . . . . . . . . . . . . . . . . . . Drone Launches . | . . . . . . . . . . . . . . . . . . . . . . . . . . Drone Recoveries . | . . . . . . . . . . . . . . . . . . . . . . . . . . Exploration | -11 -10 -10 -10 -9 -8 -7 -7 -7 -7 -5 -5 -5 -5 -5 -4 -4 -4 -4 -4 -3 -3 -2 -2 -2 -1 ------------- Run | Yrd Mat Min Exi Min Mat Fac Sto Rec Scr Fac Ext Cet Arc Hub Fac Was Fac Arm Lab Res Tes Res Qua Sec Acc Turns Passed 19927 | 111 1237 1215 366 551 304 691 918 624 701 356 1783 418 75 290 866 268 385 622 17 966 859 1358 466 1087 3393 Spaces Moved 27671 | 80 973 480 434 593 283 629 1083 897 1431 509 1294 388 114 444 1719 248 586 1081 18 2308 1553 2975 1456 2003 4092 Core 4 | 3 . . . . . . . . . . . . . . . . . . . . 1 . . . . Treads . | . . . . . . . . . . . . . . . . . . . . . . . . . . Legs . | . . . . . . . . . . . . . . . . . . . . . . . . . . Wheels 3775 | 77 973 480 434 593 283 629 306 . . . . . . . . . . . . . . . . . . Hover 23886 | . . . . . . . 777 897 1431 509 1294 388 114 444 1719 248 586 1081 18 2308 1552 2975 1456 1997 4092 Flight . | . . . . . . . . . . . . . . . . . . . . . . . . . . Fastest Speed 17 | 50 80 80 80 80 80 95 36 36 36 36 36 33 33 33 25 25 25 18 26 26 17 17 17 17 17 Average Speed 43 | 78 80 80 80 80 92 95 58 36 36 55 95 53 33 33 27 25 25 25 26 26 28 27 27 32 42 Slowest Speed 450 | 80 80 80 95 80 95 95 140 36 36 96 96 96 93 33 93 25 25 104 26 99 450 34 28 96 104 Overloaded Moves 210 | . . . . . . . . . . . . . . . . . . 4 . . 5 8 14 60 119 Propulsion Burnouts . | . . . . . . . . . . . . . . . . . . . . . . . . . . Robots Hopped . | . . . . . . . . . . . . . . . . . . . . . . . . . . Cave-ins Triggered . | . . . . . . . . . . . . . . . . . . . . . . . . . . Spacefolds 3 | . . . . . . . . . . . . . . . . . . . . . . . . 3 . Exploration Rate (%) 64 | 4 99 96 67 99 27 20 86 91 58 11 97 87 93 47 30 87 19 71 6 65 96 78 96 93 63 Regions Visited 25 Branch Regions 15 Pre-discovered Areas 3 | . . . 1 2 . . . . . . . . . . . . . . . . . . . . . Known Exits Taken 17 | . . . . . . 1 1 1 1 1 1 1 1 1 . . 1 1 1 1 1 1 1 1 . Unknown Exits Taken 6 | 1 1 1 1 1 1 . . . . . . . . . . . . . . . . . . . . Scrap Searched 11 | . . 2 . 2 . . . . 7 . . . . . . . . . . . . . . . . Spaces Dug 464 | . 1 11 . . 13 8 37 3 . . 5 . . 13 45 1 13 49 . 34 41 54 25 37 74 Terrain Destroyed 936 | 3 16 19 . . 13 9 72 3 . . 27 . 30 185 57 3 17 70 . 35 101 59 35 66 116 Melee 104 | . . . . . 3 8 8 3 . . 1 . . 13 35 1 13 16 . 2 1 . . . . Projectile 326 | . 1 . . . . 1 6 . . . 10 . . . 10 2 . 37 . 33 46 57 27 51 45 AOE 469 | 3 15 19 . . 10 . 58 . . . 16 . 30 172 12 . 4 17 . . 54 . 8 8 43 Terrain Rammed . | . . . . . . . . . . . . . . . . . . . . . . . . . . Walls Destroyed . | . . . . . . . . . . . . . . . . . . . . . . . . . . Machines Disabled . | . . . . . . . . . . . . . . . . . . . . . . . . . . Actions | -11 -10 -10 -10 -9 -8 -7 -7 -7 -7 -5 -5 -5 -5 -5 -4 -4 -4 -4 -4 -3 -3 -2 -2 -2 -1 --------- Run | Yrd Mat Min Exi Min Mat Fac Sto Rec Scr Fac Ext Cet Arc Hub Fac Was Fac Arm Lab Res Tes Res Qua Sec Acc Total 34336 | 106 1280 1267 450 669 312 705 1316 1149 1615 582 1766 586 147 536 1966 367 760 1370 30 2660 1937 3462 1515 2387 5396 Wait 3501 | 9 178 712 . 77 8 34 142 184 163 61 289 124 26 53 65 12 63 119 . 202 110 192 10 183 485 Move 27641 | 79 972 479 433 592 282 628 1082 896 1430 508 1293 387 113 443 1718 247 585 1079 17 2307 1552 2974 1455 1999 4091 Hop . | . . . . . . . . . . . . . . . . . . . . . . . . . . Pick Up 67 | 1 6 2 3 . 1 . 2 2 2 1 6 7 1 . 3 . 2 2 . 5 5 . 2 4 10 Fast Attach 218 | 7 2 1 3 . 5 6 15 2 . 4 6 4 . 1 14 3 5 15 . 11 31 21 5 21 36 Attach 18 | . 2 . . . . . 1 . . . 2 2 . . 1 . 1 1 . 2 . . 1 1 4 Detach 8 | . . . . . 1 . . . . . 1 1 . . . . 1 . . . . 1 . 1 2 Swap 119 | . 4 3 2 . 1 1 9 2 2 1 12 6 3 1 17 3 6 11 . 4 8 6 3 11 3 Drop 220 | . 9 3 5 . 5 5 15 5 1 3 12 10 1 1 19 3 6 11 1 13 35 8 7 14 28 Fire 1492 | 10 83 44 . . 1 . 10 . . . 33 13 2 5 49 27 21 90 2 78 138 192 32 134 528 Melee 326 | . . . 4 . 7 11 25 38 17 . 34 . 1 25 64 41 26 21 . 4 8 . . . . Ram . | . . . . . . . . . . . . . . . . . . . . . . . . . . Kick . | . . . . . . . . . . . . . . . . . . . . . . . . . . Crush . | . . . . . . . . . . . . . . . . . . . . . . . . . . Escape Stasis 15 | . . . . . . . . . . . . . . . 1 . . 1 . 13 . . . . . Rewire 12 | . . . . . . . . . . . 12 . . . . . . . . . . . . . . Trap . | . . . . . . . . . . . . . . . . . . . . . . . . . . Miscellaneous 699 | . 24 23 . . 1 20 15 20 . 4 66 32 . 7 15 31 44 20 10 21 50 68 . 19 209 Route ------- -11/Scrapyard -10/Materials (discovered 5 exits: [*Mat x3] / *Min / [*Sub]) -10/Mines (discovered 3 exits: [*Mat x2] / *Exi) -10/Exiles (discovered 2 exits: [*Min x2]) -9/Mines (discovered 2 exits: *Mat x2) -8/Materials -7/Factory (discovered 4 exits: *Sto x2 / Low x2) -7/Storage (discovered 2 exits: [*Fac] / *Rec) -7/Recycling (discovered 2 exits: *Fac / *Scr) -7/Scraptown -5/Factory (discovered 5 exits: *Fac / Upp x2 / *Ext x2) -5/Extension (discovered 2 exits: *Fac / *Cet) -5/Cetus (discovered 3 exits: *Fac x2 / *Arc) -5/Archives (discovered 3 exits: *Fac / *Hub x2) -5/Hub_04(d) (discovered 2 exits: *Fac x2) -4/Factory (discovered 4 exits: *Res / Upp x2 / Arm) -4/Waste -4/Factory (discovered 3 exits: Upp x2 / *Arm) -4/Armory -4/Lab -3/Research (discovered 5 exits: *Res x3 / *Tes x2) -3/Testing -2/Research (discovered 5 exits: *Acc x3 / *Qua x2) -2/Quarantine (discovered 2 exits: *Acc / *Sec) -2/Section 7 -1/Access (discovered 2 exits: *Sur / *Com) To Fleet Rendezvous History --------- Turn | Location | Event 9 | -11/Scrapyard | Upgraded with Propulsion slot (x1) 9 | -11/Scrapyard | Upgraded with Utility slot (x1) 9 | -11/Scrapyard | Upgraded with Weapon slot (x1) 21 | -11/Scrapyard | Discovered new exit (range 16) 112 | -11/Scrapyard | Entered Materials 247 | -10/Materials | Discovered new exit (range 10) 309 | -10/Materials | Build established: Mutant 358 | -10/Materials | Discovered new exit (range 12) 585 | -10/Materials | Discovered new exit (range 16) 698 | -10/Materials | Reached level 2 765 | -10/Materials | Upgraded with Utility slot (x1) 840 | -10/Materials | Central database locked down 1056 | -10/Materials | Build established: Hacker-Mutant 1099 | -10/Materials | Discovered new exit (range 10) 1190 | -10/Materials | Discovered new exit (range 16) 1349 | -10/Materials | Entered Mines 1351 | -10/Mines | Reached level 3 1373 | -10/Mines | Learned 2 Materials zone layouts 1386 | -10/Mines | Discovered new exit (range 9) 1412 | -10/Mines | Met a Derelict bent on vengeance 1414 | -10/Mines | Found a damaged Exp. Sensor Array with a note attached 1421 | -10/Mines | Found Prototype Device 1459 | -10/Mines | Met a Derelict shopkeep closing up shop 1512 | -10/Mines | Excavation squad dispatched 1512 | -10/Mines | A large section of the Mines collapsed 1762 | -10/Mines | Excavation squad dispatched 2021 | -10/Mines | Learned Materials emergency access door positions 2148 | -10/Mines | Identified Exp. Sensor Array 2270 | -10/Mines | Discovered new exit (range 10) 2549 | -10/Mines | Deemed a non-threat by the Exiles lab entrance 2549 | -10/Mines | Discovered new exit (range 5) 2564 | -10/Mines | Entered Exiles 2576 | -10/Exiles | Discovered new exit (range 15) 2599 | -10/Exiles | Met 8R-AWN 2612 | -10/Exiles | Met EX-HEX 2634 | -10/Exiles | Met EX-BIN 2645 | -10/Exiles | Reached level 4 2645 | -10/Exiles | Aligned with FarCom system 2645 | -10/Exiles | Given EX-Vault access code 2735 | -10/Exiles | Met EX-DEC 2756 | -10/Exiles | Learned location of Zion (-7) 2796 | -10/Exiles | Opened EX-Vault 2800 | -10/Exiles | Found Prototype Energy Cannon 2800 | -10/Exiles | Identified Latent Energy Streamer 2809 | -10/Exiles | Found Prototype Energy Cannon 2809 | -10/Exiles | Identified YOLO Cannon 2815 | -10/Exiles | Found Prototype Energy Gun 2815 | -10/Exiles | Identified AWS/Thermal 2843 | -10/Exiles | Warned to stay clear of 0b10 Research branches 2918 | -10/Exiles | Discovered new exit (range 14) 2930 | -10/Exiles | Stole two prototypes: AWS/Thermal, Latent Energy Streamer 2930 | -10/Exiles | Entered Mines 3121 | -9/Mines | Discovered new exit (range 5) 3200 | -9/Mines | Discovered new exit (range 10) 3206 | -9/Mines | Met a Derelict testing a Signal Generator 3222 | -9/Mines | Build established: Hacker-Skirmisher 3230 | -9/Mines | Learned location of Storage (-7) 3481 | -9/Mines | Entered Materials 3481 | -8/Materials | Accompanied by 1 ally 3483 | -8/Materials | Reached level 5 3494 | -8/Materials | Upgraded with Utility slot (x1) 3500 | -8/Materials | Central database locked down 3541 | -8/Materials | Upgraded with Weapon slot (x1) 3731 | -8/Materials | Discovered new exit (range 7) 3785 | -8/Materials | Entered Factory 3787 | -7/Factory | FarCom data flow suspended 3787 | -7/Factory | Reached level 6 3833 | -7/Factory | Upgraded with Utility slot (x1) 3910 | -7/Factory | Allied Derelicts emerged from ambush trap array 4099 | -7/Factory | Build established: Hacker-Mutant 4108 | -7/Factory | Reached level 7 4326 | -7/Factory | Identified exit to Storage 4326 | -7/Factory | Identified exit to Lower Caves 4420 | -7/Factory | Upgraded with Utility slot (x1) 4476 | -7/Factory | Entered Storage 4478 | -7/Storage | Reached level 8 4539 | -7/Storage | Met a pair of Derelict thieves 4546 | -7/Storage | Found Prototype Launcher 4546 | -7/Storage | Identified Rocket Array 4654 | -7/Storage | Destroyed 8 combat bots 4835 | -7/Storage | Reached level 9 4841 | -7/Storage | Upgraded with Propulsion slot (x2) 4968 | -7/Storage | Upgraded with Propulsion slot (x1) 5011 | -7/Storage | P-60 Hacker assimilated allied TI-23Q(g) 5150 | -7/Storage | Assisted by bots powering up and referring to "LRC-V3" 5268 | -7/Storage | Garrison activated, responded to threat 5273 | -7/Storage | Discovered new exit (range 16) 5336 | -7/Storage | Reached level 10 5393 | -7/Storage | Used back door to open Recycling access 5393 | -7/Storage | Discovered new exit (range 5) 5394 | -7/Storage | Identified exit to Recycling 5394 | -7/Storage | Entered Recycling 5396 | -7/Recycling | Reached level 11 5616 | -7/Recycling | Discovered new exit (range 11) 5873 | -7/Recycling | Scanned before Scraplab entrance 5880 | -7/Recycling | Entered Scraplab 5896 | -7/Recycling | Discovered new exit (range 2) 5896 | -7/Recycling | Identified exit to Scraptown 6018 | -7/Recycling | Entered Scraptown 6018 | -7/Scraptown | Accompanied by 7 allies 6018 | -7/Scraptown | System corruption cleaned by C-Scrubber 6115 | -7/Scraptown | Visited Comm Corps 6128 | -7/Scraptown | Visited Bundlers 6175 | -7/Scraptown | Turned away by UFD registrar 6188 | -7/Scraptown | Visited Cyclists 6197 | -7/Scraptown | Visited Shadow of the Wyrm 6201 | -7/Scraptown | Visited Awakened 6219 | -7/Scraptown | Visited Symbiants 6313 | -7/Scraptown | Discovered new exit (range 9) 6512 | -7/Scraptown | Identified exit to Factory 6719 | -7/Scraptown | Entered Factory 6719 | -5/Factory | Accompanied by 7 allies 6721 | -5/Factory | Reached level 12 6723 | -5/Factory | Upgraded with Utility slot (x1) 6755 | -5/Factory | Identified exit to Upper Caves 6755 | -5/Factory | Identified exit to Extension 6758 | -5/Factory | Central database locked down 6808 | -5/Factory | Upgraded with Utility slot (x1) 6874 | -5/Factory | Fabricated Adv. Force Field? 6937 | -5/Factory | Reached level 13 6941 | -5/Factory | Upgraded with Power slot (x1) 6963 | -5/Factory | Discovered new exit (range 12) 6973 | -5/Factory | Identified exit to Factory 7075 | -5/Factory | Entered Extension 7075 | -5/Extension | Accompanied by 6 allies 7112 | -5/Extension | Build established: Wizard-Mutant 7392 | -5/Extension | Reached level 14 7653 | -5/Extension | Upgraded with Utility slot (x1) 7672 | -5/Extension | Rescued a captive Derelict 7678 | -5/Extension | Rescued a captive Derelict 7887 | -5/Extension | Spotted B-75 Beast 7893 | -5/Extension | AWS/Thermal suddenly broke down 7904 | -5/Extension | Destroyed B-75 Beast 7908 | -5/Extension | Spotted B-75 Beast 7940 | -5/Extension | Core integrity fell below 50% 7943 | -5/Extension | Allies destroyed B-75 Beast 7953 | -5/Extension | Lost 6 allies 7991 | -5/Extension | Reached level 15 8339 | -5/Extension | Rescued a captive Derelict 8340 | -5/Extension | Rescued a captive Derelict 8384 | -5/Extension | Rescued A7 8428 | -5/Extension | Rescued a captive Derelict 8429 | -5/Extension | Rescued a captive Derelict 8449 | -5/Extension | Rescued a captive Derelict 8676 | -5/Extension | Discovered exit to Factory (range 16) 8677 | -5/Extension | Discovered new exit (range 15) 8786 | -5/Extension | Reached level 16 8839 | -5/Extension | Identified exit to Cetus 8858 | -5/Extension | Entered Cetus 8858 | -5/Cetus | Accompanied by 15 allies (A7) 8863 | -5/Cetus | Acquired a Cetus Manufacturing Module code from A7 8871 | -5/Cetus | System corruption reached 10% 8872 | -5/Cetus | Spotted Cetus Guard 8872 | -5/Cetus | Spotted Cetus Guard 8872 | -5/Cetus | Spotted Cetus Guard 8880 | -5/Cetus | Spotted Cetus Guard 8888 | -5/Cetus | Destroyed Cetus Guard 8894 | -5/Cetus | Destroyed Cetus Guard 8897 | -5/Cetus | Destroyed Cetus Guard 8898 | -5/Cetus | Reached level 17 8898 | -5/Cetus | Allies destroyed Cetus Guard 8926 | -5/Cetus | Lost 6 allies 8949 | -5/Cetus | Discovered exit to Factory (range 16) 9066 | -5/Cetus | Started Cetus Manufacturing Module 9070 | -5/Cetus | Discovered new exit (range 15) 9075 | -5/Cetus | Identified exit to Archives 9091 | -5/Cetus | Manufactured an Enhanced Grunt 9116 | -5/Cetus | Manufactured an Enhanced Grunt 9141 | -5/Cetus | Manufactured an Enhanced Grunt 9141 | -5/Cetus | Spotted Cetus Guard 9141 | -5/Cetus | Spotted Cetus Guard 9149 | -5/Cetus | Spotted Cetus Guard 9149 | -5/Cetus | Spotted Cetus Guard 9157 | -5/Cetus | Allies destroyed Cetus Guard 9163 | -5/Cetus | Allies destroyed Cetus Guard 9166 | -5/Cetus | Manufactured an Enhanced Grunt 9171 | -5/Cetus | Allies destroyed Cetus Guard 9173 | -5/Cetus | Allies destroyed Cetus Guard 9179 | -5/Cetus | Discovered exit to Factory (range 16) 9182 | -5/Cetus | Reached level 18 9182 | -5/Cetus | Met Revision 17 9190 | -5/Cetus | Upgraded with Propulsion slot (x1) 9191 | -5/Cetus | Manufactured an Enhanced Grunt 9276 | -5/Cetus | Entered Archives 9276 | -5/Archives | Accompanied by 14 allies (A7) 9281 | -5/Archives | Met Zhirov 9284 | -5/Archives | Unable to access archive contents 9285 | -5/Archives | Discovered new exit (range 16) 9287 | -5/Archives | Reinforcements dispatched to Archives 9298 | -5/Archives | Discovered new exit (range 14) 9303 | -5/Archives | Reached level 19 9311 | -5/Archives | Discovered exit to Factory (range 16) 9325 | -5/Archives | Identified exit to Hub_04(d) 9332 | -5/Archives | Reinforcements dispatched to Archives 9351 | -5/Archives | Entered Hub_04(d) 9351 | -5/Hub_04(d) | Accompanied by 5 allies 9353 | -5/Hub_04(d) | Reached level 20 9440 | -5/Hub_04(d) | Build established: Hacker-Sprinter 9586 | -5/Hub_04(d) | Discovered exit to Factory (range 9) 9610 | -5/Hub_04(d) | Reached level 21 9626 | -5/Hub_04(d) | Discovered exit to Factory (range 4) 9630 | -5/Hub_04(d) | Network Hub disabled 9636 | -5/Hub_04(d) | Spotted B-75 Beast 9641 | -5/Hub_04(d) | Entered Factory 9643 | -4/Factory | Reached level 22 9681 | -4/Factory | Identified exit to Upper Caves 9681 | -4/Factory | Identified exit to Armory 9789 | -4/Factory | Upgraded with Utility slot (x1) 9790 | -4/Factory | Found Quantum Capacitor 9915 | -4/Factory | Fabricated Enh. Nova Cannon? 9937 | -4/Factory | Upgraded with Utility slot (x1) 9959 | -4/Factory | Core integrity fell below 50% 9977 | -4/Factory | Core integrity fell below 20% 10095 | -4/Factory | Discovered new exit (range 18) 10098 | -4/Factory | Reached level 23 10109 | -4/Factory | Fabricated Prc. Energy Filter? 10238 | -4/Factory | Build established: Hacker-Scout 10507 | -4/Factory | Manually triggered Chute Trap 10507 | -4/Factory | Sucked down chute 10507 | -4/Factory | Entered Waste 10510 | -4/Waste | Spotted C-40 Crusher 10510 | -4/Waste | Destroyed C-40 Crusher 10515 | -4/Waste | Spotted C-40 Crusher 10522 | -4/Waste | EMP discharged 10522 | -4/Waste | System corruption reached 10% 10524 | -4/Waste | Spotted C-40 Crusher 10545 | -4/Waste | Spotted C-40 Crusher 10548 | -4/Waste | Crushed by Compactor (1 part destroyed, 2 dropped) 10557 | -4/Waste | Met Warlord forces unprepared to attack 10563 | -4/Waste | Allies destroyed C-40 Crusher 10567 | -4/Waste | Allies destroyed C-40 Crusher 10570 | -4/Waste | Allies destroyed C-40 Crusher 10576 | -4/Waste | Spotted C-40 Crusher 10579 | -4/Waste | Allies destroyed C-40 Crusher 10598 | -4/Waste | Spotted C-40 Crusher 10611 | -4/Waste | Destroyed C-40 Crusher 10622 | -4/Waste | EMP discharged 10623 | -4/Waste | Discovered new exit (range 10) 10627 | -4/Waste | Identified exit to Factory 10691 | -4/Waste | Murdered 6 allies 10722 | -4/Waste | EMP discharged 10775 | -4/Waste | Entered Factory 10775 | -4/Factory | Accompanied by 8 allies 10849 | -4/Factory | Murdered 8 allies 11012 | -4/Factory | Reached level 24 11105 | -4/Factory | System corruption reached 30% 11144 | -4/Factory | Lost 3 allies 11158 | -4/Factory | Spotted B-86 Titan 11160 | -4/Factory | Entered Armory 11162 | -4/Armory | Reached level 25 11659 | -4/Armory | Found Fusion Bomb Launcher 11739 | -4/Armory | Discovered new exit (range 6) 11749 | -4/Armory | Identified exit to Lab 11782 | -4/Armory | Entered Lab 11782 | -4/Lab | Discovered new exit (range 9) 11784 | -4/Lab | Reached level 26 11784 | -4/Lab | Identified exit to Research 11786 | -4/Lab | Unable to decrypt terminal 11799 | -4/Lab | Entered Research 11801 | -3/Research | Reached level 27 11829 | -3/Research | Build established: Hacker-Ninja 11829 | -3/Research | Discovered new exit (range 16) 11829 | -3/Research | Discovered new exit (range 8) 11831 | -3/Research | Identified exit to Testing 11886 | -3/Research | Spotted B-86 Titan 11917 | -3/Research | Identified exit to Research 11999 | -3/Research | Revision forces began assault on 0b10 12168 | -3/Research | Upgraded with Utility slot (x1) 12213 | -3/Research | Met up with Revision 17++ 12317 | -3/Research | Spotted B-86 Titan 12499 | -3/Research | Research terminal network offline 12647 | -3/Research | Fabricated Adv. Cloaking Device? 12691 | -3/Research | Reached level 28 12709 | -3/Research | Upgraded with Utility slot (x1) 12718 | -3/Research | Spotted Executioner 12722 | -3/Research | Spotted Striker 12723 | -3/Research | Destroyed Executioner 12728 | -3/Research | Destroyed Striker 12765 | -3/Research | Entered Testing 12765 | -3/Testing | Spotted Superbehemoth 12797 | -3/Testing | Found Prototype Leg 12797 | -3/Testing | Identified Myomer Exoskeleton 12832 | -3/Testing | Discovered exit to Research (range 18) 12941 | -3/Testing | Found Prototype Ballistic Cannon 12941 | -3/Testing | Identified Omega Cannon 13019 | -3/Testing | Spotted PX-P5HEGKMBL8 13104 | -3/Testing | Found Prototype Device 13104 | -3/Testing | Identified Exp. Hardlight Generator 13149 | -3/Testing | Found Prototype Ballistic Gun 13149 | -3/Testing | Identified Hyp. Multirail 13266 | -3/Testing | Spotted Striker 13371 | -3/Testing | Found Prototype Energy Cannon 13371 | -3/Testing | Identified Potential Cannon 13436 | -3/Testing | Spotted Striker 13438 | -3/Testing | Destroyed Striker 13438 | -3/Testing | Spotted Alpha 7 13439 | -3/Testing | Reached level 29 13439 | -3/Testing | Destroyed Striker 13457 | -3/Testing | Build established: Hacker-Scout 13531 | -3/Testing | Stole the SGEMP Prototype 13548 | -3/Testing | Destroyed Alpha 7 13624 | -3/Testing | Entered Research 13626 | -2/Research | Reached level 30 13650 | -2/Research | Discovered new exit (range 19) 13689 | -2/Research | Found Exp. Transmission Jammer 13708 | -2/Research | Discovered new exit (range 7) 13713 | -2/Research | Identified exit to Access 13815 | -2/Research | Identified exit to Quarantine 13955 | -2/Research | Found Spectral Analyzer 14060 | -2/Research | Spotted B-90 Cyclops 14063 | -2/Research | Spotted B-90 Cyclops 14194 | -2/Research | Discovered exit to Access (range 21) 14195 | -2/Research | Spotted B-90 Cyclops 14237 | -2/Research | Spotted B-90 Cyclops 14242 | -2/Research | Fabricated Graviton Reactor? 14596 | -2/Research | Reached level 31 14982 | -2/Research | Entered Quarantine 15173 | -2/Quarantine | Spotted Alpha 7 15232 | -2/Quarantine | First assault squad dispatched 15288 | -2/Quarantine | Discovered exit to Access (range 10) 15348 | -2/Quarantine | Found Alien Artifact 15350 | -2/Quarantine | Identified Subatomic Replicator 15350 | -2/Quarantine | Used Subatomic Replicator to replicate Graviton Reactor 15417 | -2/Quarantine | Spotted Fortress 15446 | -2/Quarantine | Discovered new exit (range 6) 15448 | -2/Quarantine | Identified exit to Section 7 15448 | -2/Quarantine | Entered Section 7 15450 | -2/Section 7 | Reached level 32 15460 | -2/Section 7 | Found Alien Artifact 15460 | -2/Section 7 | Identified Spacefold Activator 15463 | -2/Section 7 | Upgraded with Utility slot (x1) 15524 | -2/Section 7 | Spotted S7 Guard 15562 | -2/Section 7 | Found Alien Artifact 15562 | -2/Section 7 | Identified Core Reset Matrix 15562 | -2/Section 7 | Used Core Reset Matrix 15566 | -2/Section 7 | Sensed 18 artifacts in vicinity 15584 | -2/Section 7 | Found Integrated Reactor 15584 | -2/Section 7 | Installed Integrated Reactor, increased core energy generation (+10) 15653 | -2/Section 7 | Found Integrated Reactor 15653 | -2/Section 7 | Installed Integrated Reactor, increased core energy generation (+10) 15672 | -2/Section 7 | Spotted B-90 Cyclops 15801 | -2/Section 7 | Discovered exit to Access (range 5) 15824 | -2/Section 7 | Spotted S7 Guard 15828 | -2/Section 7 | Found Core Membrane 15828 | -2/Section 7 | Installed Core Membrane, gained immunity to corruption 16034 | -2/Section 7 | Spotted Alpha 7 16036 | -2/Section 7 | Spotted Alpha 7 16205 | -2/Section 7 | Spotted B-99 Colossus 16231 | -2/Section 7 | Found Integrated Dissipator 16231 | -2/Section 7 | Installed Integrated Dissipator, increased core heat dissipation (+20) 16233 | -2/Section 7 | Found Integrated Dissipator 16233 | -2/Section 7 | Installed Integrated Dissipator, increased core heat dissipation (+20) 16235 | -2/Section 7 | Found Integrated Dissipator 16235 | -2/Section 7 | Installed Integrated Dissipator, increased core heat dissipation (+20) 16248 | -2/Section 7 | Found LRC Inertial Stabilizer 16248 | -2/Section 7 | Installed LRC Inertial Stabilizer, increased mass support (+10) 16251 | -2/Section 7 | Found LRC Insulator 16251 | -2/Section 7 | Installed LRC Insulator, gained EM resistance (25) 16343 | -2/Section 7 | Spotted Executioner 16343 | -2/Section 7 | Spotted Executioner 16365 | -2/Section 7 | Spotted Executioner 16365 | -2/Section 7 | Spotted Executioner 16520 | -2/Section 7 | Found Integrated Thermoelectric Network 16523 | -2/Section 7 | Installed Integrated Thermoelectric Network, gained heat-energy exchange potential 16535 | -2/Section 7 | Entered Access 16537 | -1/Access | Reached level 33 16546 | -1/Access | Build established: Alien-Scout 16704 | -1/Access | Reached level 34 16707 | -1/Access | Identified exit to Surface 16750 | -1/Access | Imp. Hacking Suite fried by hacking feedback 16798 | -1/Access | Discovered new exit (range 10) 16842 | -1/Access | Spotted B-99 Colossus 16842 | -1/Access | Spotted B-99 Colossus 16929 | -1/Access | Core integrity fell below 50% 16961 | -1/Access | Identified exit to Command 17285 | -1/Access | First assault squad dispatched 17290 | -1/Access | Destroyed B-99 Colossus 17542 | -1/Access | Build established: Alien-Skirmisher 18059 | -1/Access | Reached level 35 18093 | -1/Access | Destroyed 8 combat bots 18237 | -1/Access | Spotted B-99 Colossus 18286 | -1/Access | Spotted B-99 Colossus 18478 | -1/Access | Destroyed 10 combat bots 18499 | -1/Access | Build established: Alien-Scout 19114 | -1/Access | Spotted B-99 Colossus 19128 | -1/Access | Garrison activated, responded to threat 19161 | -1/Access | Build established: Alien-Skirmisher 19218 | -1/Access | Found Prototype Hackware 19218 | -1/Access | Identified Exp. System Shield 19260 | -1/Access | High security lockdown imminent 19306 | -1/Access | Reached level 36 19327 | -1/Access | Destroyed 9 combat bots 19340 | -1/Access | High security lockdown engaged 19512 | -1/Access | Build established: Alien-Scout 19602 | -1/Access | Spotted Investigator 19608 | -1/Access | Destroyed Investigator 19610 | -1/Access | Destroyed Executioner 19611 | -1/Access | Spotted Striker 19633 | -1/Access | Destroyed 7 combat bots 19634 | -1/Access | Destroyed Striker 19669 | -1/Access | Spotted Executioner 19669 | -1/Access | Spotted Striker 19669 | -1/Access | Spotted Striker 19669 | -1/Access | Spotted Striker 19669 | -1/Access | Spotted Executioner 19699 | -1/Access | Destroyed Striker 19706 | -1/Access | Destroyed Executioner 19708 | -1/Access | Destroyed Striker 19733 | -1/Access | Destroyed 8 combat bots 19761 | -1/Access | Emitted hypermatrix ping 19766 | -1/Access | Assembled emerged from beneath the floor 19800 | -1/Access | Spotted Striker 19804 | -1/Access | Destroyed Striker 19814 | -1/Access | Lost 6 allies 19874 | -1/Access | Sterilization system engaged 19884 | -1/Access | Destroyed Executioner 19896 | -1/Access | Destroyed Striker 19903 | -1/Access | Spotted Striker 19905 | -1/Access | Spotted Executioner 19910 | -1/Access | Destroyed Executioner 19913 | -1/Access | Spotted Executioner 19914 | -1/Access | Spotted Striker 19916 | -1/Access | Core integrity fell below 20% 19928 | *** | Heading to fleet! Last Messages --------------- 19918_ P-80 Master destroyed. 19920_ HV Slug penetrates Wall. 19920_ HV Slug penetrates P-80 Master. 19920_ P-80 Master suffers critical hit (Destroy). 19920_ Destroyed Adv. Remote Datajack. 19920_ HV Slug penetrates Wave Collapse Detector. 19920_ HV Slug penetrates Wall. 19922_ Slug penetrates Earth. 19922_ HV Slug penetrates P-80 Master. 19922_ HV Slug penetrates H-88 Terminator. 19922_ H-88 Terminator suffers critical hit (Destroy). 19922_ H-88 Terminator destroyed. 19923_ Slug penetrates Striker. 19923_ Slug penetrates Earth. 19923_ Slug penetrates Striker. 19923_ Slug penetrates Earth. 19925_ Core Membrane filtered system corruption (1). 19925_ P-80 Master resets Striker, system corruption cleaned. 19926_ Acquired 1 matter. [Achievement: True Cogmind] Map ----- +----------------------------------------------------+ | %#%!################??############### | | ![%#* # *##??############### | | ##########!!%#!! # ##??## #######+ | | #########=%*%#[ # " ##??## * ## | | ????????? !%*#!/ # """ ##??## " ## | | ?????????#!!!+=* # """##??## """ ## | | ######## !=u=! # " ##??## """ ## | | ##########*[%/! [ # ##??## " ## | | # =!#%%=** # ??????## ## | | ## !#!%!=[ # ###### ## | | ## !|%%*!#!###/###+#############+############ | | ## " =[/=%R [%! % % % !!%CC | | ## """===%/%=*%% m = !=[ | | ## """!!%!%[#################################### | | ## "=[[#E=!#################################### | | ## !!%[!!###????????????????????????????????? | | ## =[=mCp ##????????????????????????????????? | | ##########!pK" ##?#####??????????????????????????? | | ######## %;==! ############################??????? | | ?????## [/=%%;;#### ######################??????? | | ?????## */=|!% """ """" ##??????? | | ?????## %;[/%% "" "??" BB ######### | | ?????### ;=!%= "??" BB ######### | | ?????#### ;!=[%! "??" | | ??????#####k!!% "" "??" !!! | | ???????#### K @" "?""% !%=! | | ?????????##!*% | """ !%! | | ?????????##% % ! ###+##### | | ?????????## """ % # | | ?????????## """ % # | | ?????????## #;#;### ##################### A """"" | | ?????????## # ######################## """"" | | ########### # # ######?################## """"" | | ########### ## ##????################## """"" | | ## %############# #### """"" | | ## !############# [ #### """"" | | """"" ## % # #### | | """"" ## # #### | | """"" ## # [ #### * | | """"" # # #### ] | | """"" + # " ############ | | """"" # + """ ############ | | # # """ ##?????????? | | # ######### # " [ ##?????????? | | ########## # # # ##?????????? | | ########## # # # #########??? | | ########## # + ######################??? | | ########## # # ###### # ##??? | | # # # ##??? | | # + + ##??? | +----------------------------------------------------+ Best States ------------- Heat Dissipation 133 Coolant Potential 100 Energy Generation 102 Energy Capacity 1220 Matter Stores 300 Matter Capacity 300 Sight Range 24 Robot Scan Range 24 Terrain Scan Range 16 Terrain Scan Density 10 ECM Strength 1 Jamming Range 22 Cloak Strength 4 Power Amplification 40 Base Temperature (-) 200 Armor Coverage 450 Resistance: EM 25 Evasion (%) 73 Energy Filtering 50 Particle Charging 20 Offensive Hacking 53 Defensive Hacking 26 Item Schematics ----------------- Adv. Heavy Siege Treads | -1/Access | Hacked Robot Schematics ------------------ G-67 Veteran | -2/Section 7 | Hacked Fabricated ------------ Adv. Force Field | x2 | -5/Factory Enh. Nova Cannon | x2 | -4/Factory | Preloaded Prc. Energy Filter | x1 | -4/Factory Adv. Cloaking Device | x2 | -3/Research Graviton Reactor | x1 | -2/Research Alien Tech Used ----------------- Subatomic Replicator Spacefold Activator Core Reset Matrix Integrated Reactor Core Membrane Integrated Dissipator LRC Inertial Stabilizer LRC Insulator Integrated Thermoelectric Network Achievements -------------- True Cogmind Challenges ------------ None RPGLIKE | -11 -10 -10 -10 -9 -8 -7 -7 -7 -7 -5 -5 -5 -5 -5 -4 -4 -4 -4 -4 -3 -3 -2 -2 -2 -1 --------- Run | Yrd Mat Min Exi Min Mat Fac Sto Rec Scr Fac Ext Cet Arc Hub Fac Was Fac Arm Lab Res Tes Res Qua Sec Acc Levels Raised 35 | . 1 1 1 . 1 2 3 1 . 2 3 2 1 2 2 . 1 1 1 2 1 2 . 1 4 XP Earned 56941 | 3000 2495 1700 350 500 1941 2615 4568 1740 500 1981 4432 2865 2716 2195 3232 182 1526 1447 1028 2722 1552 3263 655 1665 6071 XP Spent 48185 | 2550 1760 500 1750 . 1900 3100 3300 . . 4900 4350 1700 . 600 8050 . 1500 . . 7400 125 . . 4100 600 Upgrades 54 | 7 5 1 2 . 2 2 3 . . 5 3 1 . 1 14 . 1 . . 3 2 . . 1 1 Power Slot 1 | . . . . . . . . . . 1 . . . . . . . . . . . . . . . Propulsion Slot 5 | 1 . . . . . . 3 . . . . 1 . . . . . . . . . . . . . Utility Slot 13 | 1 1 . . . 1 2 . . . 2 1 . . . 2 . . . . 2 . . . 1 . Weapon Slot 2 | 1 . . . . 1 . . . . . . . . . . . . . . . . . . . . Core Integrity 6 | . 2 . . . . . . . . 2 . . . . 2 . . . . . . . . . . Heat Dissipation 8 | . . . . . . . . . . . . . . . 8 . . . . . . . . . . Energy Generation 2 | . . . . . . . . . . . . . . . 2 . . . . . . . . . . Mass Support 2 | . . . . . . . . . . . . . . . . . . . . 1 . . . . 1 Inventory Capacity 6 | 1 . 1 2 . . . . . . . 1 . . . . . 1 . . . . . . . . Sensor Range 2 | . . . . . . . . . . . . . . . . . . . . . 2 . . . . Ranged Accuracy 3 | 1 . . . . . . . . . . 1 . . 1 . . . . . . . . . . . Hack Attack % 2 | 1 1 . . . . . . . . . . . . . . . . . . . . . . . . Hack Defense % 2 | 1 1 . . . . . . . . . . . . . . . . . . . . . . . . Protomatter Created 6778 | . 229 214 . . . 87 457 85 . . 310 105 96 . 171 154 568 203 . 260 388 577 . 133 2741 Integrity Restored 14522 | . 500 367 . . 2 364 182 402 . 78 1405 691 . 146 345 696 908 436 234 326 1044 1407 . 382 4607 Core 10042 | . 446 266 . . . 247 101 136 . 78 1029 450 . 55 345 696 299 306 210 99 754 879 . 154 3492 Parts 4480 | . 54 101 . . 2 117 81 266 . . 376 241 . 91 . . 609 130 24 227 290 528 . 228 1115 Protomatter Decayed 3613 | . 31 197 . . 59 20 444 . . 60 9 . 25 98 . . 110 54 . 2017 34 14 . . 441 Game ------ Seed AlloyDerelictProjector Manual? 0 Play Time 11:15:13 Cumulative 437.9 hours Start 2024.08.17 @ 23:54:53 End 2024.08.19 @ 20:15:40 Sessions 23 Manual Loads 0 Difficulty Rogue Special Mode Winter2019/RPGLIKE Game No. 35 Rogue 9 Adventurer 12 Explorer 14 Win Type 2 Total 25 Types 17/0/4/1/1/2/0/0/0 Lore% 65 Gallery% 79 Achievement% 72 Wizard Run 0 Options --------- Layout 0 ASCII 0 Keyboard 0 Movement Mouse Keybinds 0 Fullscreen 2 Font 36/Terminus++ Map View 76x50 Zoom Use 0% Tactical HUD 1 Map Filters NONE Filters NONE Steam 0 RUN: 20e118b7-6ec3-4d0f-8d05-4ca280b0f08c